Workbook

Sheet Árlista
A1: Megrendelő Neve:
A2: Elszállítás Dátuma: | G2: Vásárlás Nettó Értéke: | J2: =SUM(L11:L1636) -> 0
A3: Az árváltoztatás jogát fenntartjuk! Rendelését elküldheti e-mailben a | G3: rendeles@irritrade.hu | J3: címre.
A4: A termékekről bővebben a | G4: www.irritrade.hu | J4: oldalon vagy a termék nevére kattintva olvashat.
A5: Szűrési Lehetőségek
A6: ÚJ | C6: Termékkategória | E6: Gyártó | F6: Megnevezés | G6: Nettó ár | H6: Mennyiség | I6: Egység | J6: Csom. Egy. | K6: Rendelésre | L6: Nettó Ár Összesen
B8: VEZÉRLŐ AUTOMATIKÁK ÖNTÖZŐRENDSZEREKHEZ
B9: HÁLÓZATI (230V-OS) VEZÉRLŐK
C11: HÁLÓZATI VEZÉRLŐ | D11: ELC401IE | E11: HUNTER | F11: ECO LOGIC, 4 zónás vezérlő, BELTÉRI | G11: =VLOOKUP(D11,' '!$1:$1048576,3,0) -> 14170 | I11: db | J11: 8 | L11: =G11*H11 -> 0
C12: HÁLÓZATI VEZÉRLŐ | D12: ELC601IE | E12: HUNTER | F12: ECO LOGIC, 6 zónás vezérlő, BELTÉRI | G12: =VLOOKUP(D12,' '!$1:$1048576,3,0) -> 16094 | I12: db | J12: 8 | L12: =G12*H12 -> 0
C14: HÁLÓZATI VEZÉRLŐ | D14: XC-401-iE | E14: HUNTER | F14: X-CORE, 4 zónás vezérlő, BELTÉRI | G14: =VLOOKUP(D14,' '!$1:$1048576,3,0) -> 23970 | I14: db | J14: 10 | L14: =G14*H14 -> 0
C15: HÁLÓZATI VEZÉRLŐ | D15: XC-601-iE | E15: HUNTER | F15: X-CORE, 6 zónás vezérlő, BELTÉRI | G15: =VLOOKUP(D15,' '!$1:$1048576,3,0) -> 26963 | I15: db | J15: 10 | L15: =G15*H15 -> 0
C16: HÁLÓZATI VEZÉRLŐ | D16: XC-801-iE | E16: HUNTER | F16: X-CORE, 8 zónás vezérlő, BELTÉRI | G16: =VLOOKUP(D16,' '!$1:$1048576,3,0) -> 34456 | I16: db | J16: 10 | L16: =G16*H16 -> 0
C18: HÁLÓZATI VEZÉRLŐ | D18: XC-401-E | E18: HUNTER | F18: X-CORE, 4 zónás vezérlő, KÜLTÉRI | G18: =VLOOKUP(D18,' '!$1:$1048576,3,0) -> 34848 | I18: db | J18: 10 | L18: =G18*H18 -> 0
C19: HÁLÓZATI VEZÉRLŐ | D19: XC-601-E | E19: HUNTER | F19: X-CORE, 6 zónás vezérlő, KÜLTÉRI | G19: =VLOOKUP(D19,' '!$1:$1048576,3,0) -> 40527 | I19: db | J19: 10 | L19: =G19*H19 -> 0
C20: HÁLÓZATI VEZÉRLŐ | D20: XC-801-E | E20: HUNTER | F20: X-CORE, 8 zónás vezérlő, KÜLTÉRI | G20: =VLOOKUP(D20,' '!$1:$1048576,3,0) -> 48950 | I20: db | J20: 10 | L20: =G20*H20 -> 0
C22: HÁLÓZATI VEZÉRLŐ | D22: PC-401i-E | E22: HUNTER | F22: PRO-C moduláris vezérlő, 4-16 zónáig, BELTÉRI | G22: =VLOOKUP(D22,' '!$1:$1048576,3,0) -> 43454 | I22: db | J22: 8 | L22: =G22*H22 -> 0
C23: HÁLÓZATI VEZÉRLŐ | D23: PC-401-E | E23: HUNTER | F23: PRO-C moduláris vezérlő, 4-16 zónáig, KÜLTÉRI | G23: =VLOOKUP(D23,' '!$1:$1048576,3,0) -> 56522 | I23: db | J23: 8 | L23: =G23*H23 -> 0
C25: HÁLÓZATI VEZÉRLŐ | D25: PCC601E | E25: HUNTER | F25: PRO-C CONVENTIONAL 6 zónás FIX vezérlő, KÜLTÉRI | G25: =G19 -> 40527 | I25: db | J25: 8 | K25: Rendelésre! | L25: =G25*H25 -> 0
C26: HÁLÓZATI VEZÉRLŐ | D26: PCC1201E | E26: HUNTER | F26: PRO-C CONVENTIONAL 12 zónás FIX vezérlő, KÜLTÉRI | G26: =VLOOKUP(D26,' '!$1:$1048576,3,0) -> 91032 | I26: db | J26: 8 | K26: Rendelésre! | L26: =G26*H26 -> 0
C28: HÁLÓZATI VEZÉRLŐ | D28: IC600PL | E28: HUNTER | F28: I-CORE moduláris vezérlő, 6-30 zónáig, MŰANYAG HÁZAS | G28: =VLOOKUP(D28,' '!$1:$1048576,3,0) -> 129900 | I28: db | J28: 1 | K28: Rendelésre! | L28: =G28*H28 -> 0
C29: HÁLÓZATI VEZÉRLŐ | D29: IC600M | E29: HUNTER | F29: I-CORE moduláris vezérlő, 6-42 zónáig, FÉMHÁZAS | G29: =VLOOKUP(D29,' '!$1:$1048576,3,0) -> 258030 | I29: db | J29: 1 | K29: Rendelésre! | L29: =G29*H29 -> 0
C31: HÁLÓZATI VEZÉRLŐ | D31: F44082 | E31: RAIN BIRD | F31: ESP-LXME 8 moduláris vezérlő, 8-48 zónáig, MŰANYAG HÁZAS | G31: =VLOOKUP(D31,' '!$1:$1048576,3,0) -> 119594 | I31: db | J31: 1 | K31: Rendelésre! | L31: =G31*H31 -> 0
C32: HÁLÓZATI VEZÉRLŐ | D32: F44122 | E32: RAIN BIRD | F32: ESP-LXME 12 moduláris vezérlő, 12-48 zónáig, MŰANYAG HÁZAS | G32: =VLOOKUP(D32,' '!$1:$1048576,3,0) -> 191243 | I32: db | J32: 1 | K32: Rendelésre! | L32: =G32*H32 -> 0
A34: ÚJ | C34: HÁLÓZATI VEZÉRLŐ | D34: 200.4180410 | E34: RAIN | F34: C-Dial, 4 zónás vezérlő, BELTÉRI | G34: =VLOOKUP(D34,' '!$1:$1048576,3,0) -> 11863 | I34: db | J34: 1 | L34: =G34*H34 -> 0
A35: ÚJ | C35: HÁLÓZATI VEZÉRLŐ | D35: 200.4180610 | E35: RAIN | F35: C-Dial, 6 zónás vezérlő, BELTÉRI | G35: =VLOOKUP(D35,' '!$1:$1048576,3,0) -> 13486 | I35: db | J35: 1 | L35: =G35*H35 -> 0
A37: ÚJ | C37: HÁLÓZATI VEZÉRLŐ | D37: 200.4080410 | E37: RAIN | F37: I-Dial, 4 zónás vezérlő, BELTÉRI | G37: =VLOOKUP(D37,' '!$1:$1048576,3,0) -> 18622 | I37: db | J37: 1 | L37: =G37*H37 -> 0
A38: ÚJ | C38: HÁLÓZATI VEZÉRLŐ | D38: 200.4080610 | E38: RAIN | F38: I-Dial, 6 zónás vezérlő, BELTÉRI | G38: =VLOOKUP(D38,' '!$1:$1048576,3,0) -> 20676 | I38: db | J38: 1 | L38: =G38*H38 -> 0
A39: ÚJ | C39: HÁLÓZATI VEZÉRLŐ | D39: 200.4080810 | E39: RAIN | F39: I-Dial, 8 zónás vezérlő, BELTÉRI | G39: =VLOOKUP(D39,' '!$1:$1048576,3,0) -> 25959 | I39: db | J39: 1 | L39: =G39*H39 -> 0
A41: ÚJ | C41: HÁLÓZATI VEZÉRLŐ | D41: 200.4083410 | E41: RAIN | F41: I-Dial, 4 zónás vezérlő, KÜLTÉRI | G41: =VLOOKUP(D41,' '!$1:$1048576,3,0) -> 27181 | I41: db | J41: 1 | L41: =G41*H41 -> 0
A42: ÚJ | C42: HÁLÓZATI VEZÉRLŐ | D42: 200.4083610 | E42: RAIN | F42: I-Dial, 6 zónás vezérlő, KÜLTÉRI | G42: =VLOOKUP(D42,' '!$1:$1048576,3,0) -> 29872 | I42: db | J42: 1 | L42: =G42*H42 -> 0
A43: ÚJ | C43: HÁLÓZATI VEZÉRLŐ | D43: 200.4083810 | E43: RAIN | F43: I-Dial, 8 zónás vezérlő, KÜLTÉRI | G43: =VLOOKUP(D43,' '!$1:$1048576,3,0) -> 37453 | I43: db | J43: 1 | L43: =G43*H43 -> 0
C45: HÁLÓZATI VEZÉRLŐ | D45: TMC-212ID | E45: TORO | F45: TMC-212 vezérlő, 4-12 zónáig bővíthető, BELTÉRI | G45: =VLOOKUP(D45,' '!$1:$1048576,3,0) -> 44920 | I45: db | J45: 1 | K45: Rendelésre! | L45: =G45*H45 -> 0
C46: HÁLÓZATI VEZÉRLŐ | D46: TMC-212OD | E46: TORO | F46: TMC-212 vezérlő, 4-12 zónáig bővíthető, KÜLTÉRI | G46: =VLOOKUP(D46,' '!$1:$1048576,3,0) -> 71991 | I46: db | J46: 1 | K46: Rendelésre! | L46: =G46*H46 -> 0
B48: TÁVOLI ELÉRÉSŰ, WIFI KÉPES VEZÉRLŐK
A50: ÚJ | C50: WIFI KÉPES VEZÉRLŐ | D50: HC-601i-E | E50: HUNTER | F50: HC, BELTÉRI, 6 zónás vezérlő, Wi-Fi képes | G50: =VLOOKUP(D50,' '!$1:$1048576,3,0) -> 72352 | I50: db | J50: 1 | L50: =G50*H50 -> 0
A51: ÚJ | C51: WIFI KÉPES VEZÉRLŐ | D51: HC-1201i-E | E51: HUNTER | F51: HC, BELTÉRI, 12 zónás vezérlő, Wi-Fi képes | G51: =VLOOKUP(D51,' '!$1:$1048576,3,0) -> 84281 | I51: db | J51: 1 | L51: =G51*H51 -> 0
A52: ÚJ | C52: WIFI KÉPES VEZÉRLŐ | D52: HC-1200M | E52: HUNTER | F52: HC, 12 zónás bővítő modul | G52: =VLOOKUP(D52,' '!$1:$1048576,3,0) -> 45383 | I52: db | J52: 1 | L52: =G52*H52 -> 0
A54: ÚJ | C54: WIFI KÉPES VEZÉRLŐ | D54: PHC-601E | E54: HUNTER | F54: PRO-HC, KÜLTÉRI, 6 zónás Wi-Fi képes vezérlő | G54: =VLOOKUP(D54,' '!$1:$1048576,3,0) -> 84281 | I54: db | J54: 1 | L54: =G54*H54 -> 0
A55: ÚJ | C55: WIFI KÉPES VEZÉRLŐ | D55: PHC-1201E | E55: HUNTER | F55: PRO-HC, KÜLTÉRI, 12 zónás Wi-Fi képes vezérlő | G55: =VLOOKUP(D55,' '!$1:$1048576,3,0) -> 103470 | I55: db | J55: 1 | L55: =G55*H55 -> 0
A56: ÚJ | C56: WIFI KÉPES VEZÉRLŐ | D56: PHC-2401E | E56: HUNTER | F56: PRO-HC, KÜLTÉRI, 24 zónás Wi-Fi képes vezérlő | G56: =VLOOKUP(D56,' '!$1:$1048576,3,0) -> 181267 | I56: db | J56: 1 | K56: Rendelésre! | L56: =G56*H56 -> 0
A58: ÚJ | C58: WIFI KÉPES VEZÉRLŐ | D58: HCPLANENTHUSIAST | E58: HUNTER | F58: HC, kiterjesztett előfizetés kártya 1 évre | G58: =VLOOKUP(D58,' '!$1:$1048576,3,0) -> 15239 | I58: db | J58: 1 | K58: Rendelésre! | L58: =G58*H58 -> 0
A60: ÚJ | C60: WIFI KÉPES VEZÉRLŐ | D60: RZXe4i | E60: RAIN BIRD | F60: ESP-RZX, 6 zónás vezérlő, BELTÉRI, LNK ready | G60: =VLOOKUP(D60,' '!$1:$1048576,3,0) -> 23388 | I60: db | J60: 1 | L60: =G60*H60 -> 0
A61: ÚJ | C61: WIFI KÉPES VEZÉRLŐ | D61: RZXe6i | E61: RAIN BIRD | F61: ESP-RZX, 6 zónás vezérlő, BELTÉRI, LNK ready | G61: =VLOOKUP(D61,' '!$1:$1048576,3,0) -> 25562 | I61: db | J61: 1 | L61: =G61*H61 -> 0
A62: ÚJ | C62: WIFI KÉPES VEZÉRLŐ | D62: RZXe8i | E62: RAIN BIRD | F62: ESP-RZX, 8 zónás vezérlő, BELTÉRI, LNK ready | G62: =VLOOKUP(D62,' '!$1:$1048576,3,0) -> 30866 | I62: db | J62: 1 | L62: =G62*H62 -> 0
A64: ÚJ | C64: WIFI KÉPES VEZÉRLŐ | D64: RZXe4 | E64: RAIN BIRD | F64: ESP-RZX, 4 zónás vezérlő, KÜLTÉRI, LNK ready | G64: =VLOOKUP(D64,' '!$1:$1048576,3,0) -> 33032 | I64: db | J64: 1 | L64: =G64*H64 -> 0
A65: ÚJ | C65: WIFI KÉPES VEZÉRLŐ | D65: RZXe6 | E65: RAIN BIRD | F65: ESP-RZX, 6 zónás vezérlő, KÜLTÉRI, LNK ready | G65: =VLOOKUP(D65,' '!$1:$1048576,3,0) -> 37841 | I65: db | J65: 1 | L65: =G65*H65 -> 0
A66: ÚJ | C66: WIFI KÉPES VEZÉRLŐ | D66: RZXe8 | E66: RAIN BIRD | F66: ESP-RZX, 8 zónás vezérlő, KÜLTÉRI, LNK ready | G66: =VLOOKUP(D66,' '!$1:$1048576,3,0) -> 49854 | I66: db | J66: 1 | L66: =G66*H66 -> 0
A68: ÚJ | C68: WIFI KÉPES VEZÉRLŐ | D68: ESP4MEWIFI | E68: RAIN BIRD | F68: ESP-Me moduláris vezérlő, 4-22 zónáig, KÜLTÉRI, LNK ready | G68: =VLOOKUP(D68,' '!$1:$1048576,3,0) -> 62288 | I68: db | J68: 1 | L68: =G68*H68 -> 0
B70: ELEMES VEZÉRLŐK
C72: ELEMES VEZÉRLŐ | D72: NODE100VALVEB | E72: HUNTER | F72: NODE-100, 1 zónás, elemes vezérlő + PGV 100 BB, 9V | G72: =VLOOKUP(D72,' '!$1:$1048576,3,0) -> 35505 | I72: db | J72: 1 | L72: =G72*H72 -> 0
C73: ELEMES VEZÉRLŐ | D73: NODE100LS | E73: HUNTER | F73: NODE-100 elemes vezérlő, 1 zónás, 9V | G73: =VLOOKUP(D73,' '!$1:$1048576,3,0) -> 25584 | I73: db | J73: 1 | L73: =G73*H73 -> 0
C74: ELEMES VEZÉRLŐ | D74: NODE200 | E74: HUNTER | F74: NODE-200 elemes vezérlő, 2 zónás, 9V | G74: =VLOOKUP(D74,' '!$1:$1048576,3,0) -> 42320 | I74: db | J74: 1 | L74: =G74*H74 -> 0
C75: ELEMES VEZÉRLŐ | D75: NODE400 | E75: HUNTER | F75: NODE-400 elemes vezérlő, 4 zónás, 9V | G75: =VLOOKUP(D75,' '!$1:$1048576,3,0) -> 49916 | I75: db | J75: 1 | L75: =G75*H75 -> 0
C76: ELEMES VEZÉRLŐ | D76: NODE600 | E76: HUNTER | F76: NODE-600 elemes vezérlő, 6 zónás, 9V | G76: =VLOOKUP(D76,' '!$1:$1048576,3,0) -> 58313 | I76: db | J76: 1 | L76: =G76*H76 -> 0
A78: ÚJ | C78: ELEMES VEZÉRLŐ | D78: WPXDVKIT | E78: RAIN BIRD | F78: WPX-DV kit, elemes vezérlő + DV BB 1" szelep, 1 zóna, 9V | G78: =VLOOKUP(D78,' '!$1:$1048576,3,0) -> 27931 | I78: db | J78: 1 | L78: =G78*H78 -> 0
A79: ÚJ | C79: ELEMES VEZÉRLŐ | D79: WPX1 | E79: RAIN BIRD | F79: WPX1 elemes vezérlő, 1 zónás, 9V | G79: =VLOOKUP(D79,' '!$1:$1048576,3,0) -> 25160 | I79: db | J79: 1 | L79: 0
A80: ÚJ | C80: ELEMES VEZÉRLŐ | D80: WPX2 | E80: RAIN BIRD | F80: WPX2 elemes vezérlő, 2 zónás, 9V | G80: =VLOOKUP(D80,' '!$1:$1048576,3,0) -> 43399 | I80: db | J80: 1 | L80: 0
A81: ÚJ | C81: ELEMES VEZÉRLŐ | D81: WPX4 | E81: RAIN BIRD | F81: WPX4 elemes vezérlő, 4 zónás, 9V | G81: =VLOOKUP(D81,' '!$1:$1048576,3,0) -> 47440 | I81: db | J81: 1 | L81: 0
A82: ÚJ | C82: ELEMES VEZÉRLŐ | D82: WPX6 | E82: RAIN BIRD | F82: WPX6 elemes vezérlő, 6 zónás, 9V | G82: =VLOOKUP(D82,' '!$1:$1048576,3,0) -> 52610 | I82: db | J82: 1 | L82: 0
C83: ELEMES VEZÉRLŐ | D83: WP8 | E83: RAIN BIRD | F83: WP-8 elemes vezérlő, 8 zónás, 9V | G83: =VLOOKUP(D83,' '!$1:$1048576,3,0) -> 57205 | I83: db | J83: 1 | L83: 0
A85: ÚJ | C85: ELEMES VEZÉRLŐ | D85: 200.4064562 | E85: RAIN | F85: AMICO PRO, 1 körös elemes vezérlő + RN150 1" KH szelep | G85: =VLOOKUP(D85,' '!$1:$1048576,3,0) -> 24829 | I85: db | J85: 1 | L85: =G85*H85 -> 0
A86: ÚJ | C86: ELEMES VEZÉRLŐ | D86: 200.4064200 | E86: RAIN | F86: AMICO PRO, 2 körös elemes vezérlő | G86: =VLOOKUP(D86,' '!$1:$1048576,3,0) -> 26829 | I86: db | J86: 1 | L86: =G86*H86 -> 0
B88: CSAPRA SZERELHETŐ VEZÉRLŐK
C90: CSAPRA SZERELHETŐ VEZÉRLŐ | D90: 1ZEHTMR | E90: RAIN BIRD | F90: 1ZEHTMR, kerti csapra szerelhető vezérlő, 1 zónás | G90: =VLOOKUP(D90,' '!$1:$1048576,3,0) -> 17151 | I90: db | J90: 1 | L90: =G90*H90 -> 0
A92: ÚJ | C92: CSAPRA SZERELHETŐ VEZÉRLŐ | D92: 200.6800100 | E92: RAIN | F92: CLICK, kerti csapra szerelhető vezérlő, 1 zónás | G92: =VLOOKUP(D92,' '!$1:$1048576,3,0) -> 7892 | I92: db | J92: 1 | L92: =G92*H92 -> 0
A93: ÚJ | C93: CSAPRA SZERELHETŐ VEZÉRLŐ | D93: 200.6800200 | E93: RAIN | F93: CLICK +, kerti csapra szerelhető vezérlő, 1 zónás | G93: =VLOOKUP(D93,' '!$1:$1048576,3,0) -> 9746 | I93: db | J93: 1 | L93: =G93*H93 -> 0
A94: ÚJ | C94: CSAPRA SZERELHETŐ VEZÉRLŐ | D94: 200.6800300 | E94: RAIN | F94: CLICK BLUETOOTH, kerti csapra szerelhető vezérlő, 1 zónás | G94: =VLOOKUP(D94,' '!$1:$1048576,3,0) -> 11316 | I94: db | J94: 1 | L94: =G94*H94 -> 0
A95: ÚJ | C95: CSAPRA SZERELHETŐ VEZÉRLŐ | D95: 200.6800400 | E95: RAIN | F95: CLICK MIST, kerti csapra szerelhető vezérlő, 1 zónás | G95: =VLOOKUP(D95,' '!$1:$1048576,3,0) -> 7892 | I95: db | J95: 1 | L95: =G95*H95 -> 0
A97: ÚJ | C97: CSAPRA SZERELHETŐ VEZÉRLŐ | D97: 200.4094700 | E97: RAIN | F97: AMICO +, kerti csapra szerelhető vezérlő, 1 zónás | G97: =VLOOKUP(D97,' '!$1:$1048576,3,0) -> 11139 | I97: db | J97: 1 | L97: =G97*H97 -> 0
A98: ÚJ | C98: CSAPRA SZERELHETŐ VEZÉRLŐ | D98: 200.4044502 | E98: RAIN | F98: AMICO 2+, kerti csapra szerelhető vezérlő, 2 zónás | G98: =VLOOKUP(D98,' '!$1:$1048576,3,0) -> 17745 | I98: db | J98: 1 | L98: =G98*H98 -> 0
C100: CSAPRA SZERELHETŐ VEZÉRLŐ | D100: OR94206 | E100: ORBIT | F100: HT-6, kerti csapra szerelhető vezérlő, 1 zónás | G100: =VLOOKUP(D100,' '!$1:$1048576,3,0) -> 18473 | I100: db | J100: 1 | K100: Rendelésre! | L100: =G100*H100 -> 0
C101: CSAPRA SZERELHETŐ VEZÉRLŐ | D101: OR94148 | E101: ORBIT | F101: HT-6, kerti csapra szerelhető vezérlő, 2 zónás | G101: =VLOOKUP(D101,' '!$1:$1048576,3,0) -> 19960 | I101: db | J101: 1 | K101: Rendelésre! | L101: =G101*H101 -> 0
C102: CSAPRA SZERELHETŐ VEZÉRLŐ | D102: OR94000 | E102: ORBIT | F102: Orbit BUDDY III, csapra szerelhető vezérlő, 2 auto + 1 manuális zónás | G102: =VLOOKUP(D102,' '!$1:$1048576,3,0) -> 28192 | I102: db | J102: 1 | L102: =G102*H102 -> 0
A104: ÚJ | C104: CSAPRA SZERELHETŐ VEZÉRLŐ | D104: TTT-985371091 | E104: TORO | F104: ETT, kerti csapra szerelhető vezérlő, 1 zónás | G104: =VLOOKUP(D104,' '!$1:$1048576,3,0) -> 18155 | I104: db | J104: 1 | K104: Rendelésre! | L104: =G104*H104 -> 0
B106: VEZÉRLŐ TARTOZÉKOK
C108: HÁLÓZATI VEZÉRLŐ | D108: PCM-300 | E108: HUNTER | F108: PRO-C, PCM-300, 3 zónás bővítő modul | G108: =VLOOKUP(D108,' '!$1:$1048576,3,0) -> 11189 | I108: db | J108: 20 | L108: =G108*H108 -> 0
C109: HÁLÓZATI VEZÉRLŐ | D109: PCM-900 | E109: HUNTER | F109: PRO-C, PCM-900, 9 zónás bővítő modul | G109: =VLOOKUP(D109,' '!$1:$1048576,3,0) -> 43635 | I109: db | J109: 20 | L109: =G109*H109 -> 0
C111: HÁLÓZATI VEZÉRLŐ | D111: ICM0600 | E111: HUNTER | F111: I-CORE, ICM-600, 6 zónás bővítőmodul | G111: =VLOOKUP(D111,' '!$1:$1048576,3,0) -> 30940 | I111: db | J111: 1 | K111: Rendelésre! | L111: =G111*H111 -> 0
C113: VEZÉRLŐ TARTOZÉK | D113: ESPSM3 | E113: RAIN BIRD | F113: ESP-Me, ESPSM3, 3 zónás bővítőmodul | G113: =VLOOKUP(D113,' '!$1:$1048576,3,0) -> 9730 | I113: db | J113: 1 | L113: 0
C114: VEZÉRLŐ TARTOZÉK | D114: ESPSM6 | E114: RAIN BIRD | F114: ESP-Me, ESPSM6, 6 zónás bővítőmodul | G114: =VLOOKUP(D114,' '!$1:$1048576,3,0) -> 19914 | I114: db | J114: 1 | L114: 0
A116: ÚJ | C116: VEZÉRLŐ TARTOZÉK | D116: LNKWIFI | E116: RAIN BIRD | F116: ESP LNK WiFi modul | G116: =VLOOKUP(D116,' '!$1:$1048576,3,0) -> 23148 | I116: db | J116: 1 | L116: =G116*H116 -> 0
C118: VEZÉRLŐ TARTOZÉK | D118: ESP-LX mod | E118: RAIN BIRD | F118: ESP-LXM(E) 8 zónás modul | G118: =VLOOKUP(D118,' '!$1:$1048576,3,0) -> 40616 | I118: db | J118: 1 | K118: Rendelésre! | L118: 0
C119: VEZÉRLŐ TARTOZÉK | D119: ESP-LX mod12 | E119: RAIN BIRD | F119: ESP-LXM(E) 12 zónás modul | G119: =VLOOKUP(D119,' '!$1:$1048576,3,0) -> 54621 | I119: db | J119: 1 | K119: Rendelésre! | L119: 0
C121: VEZÉRLŐ TARTOZÉK | D121: PSR-22 | E121: HUNTER | F121: PSR-22 szivattyúinditó relé, 3.7 kW egyfázisú teljesítményig | G121: =VLOOKUP(D121,' '!$1:$1048576,3,0) -> 26618 | I121: db | J121: 1 | L121: 0
C122: VEZÉRLŐ TARTOZÉK | D122: PSR-52 | E122: HUNTER | F122: PSR-52 szivattyúinditó relé, 5.6 kW egyfázisú teljesítményig | G122: =VLOOKUP(D122,' '!$1:$1048576,3,0) -> 29874 | I122: db | J122: 1 | K122: Rendelésre! | L122: 0
C124: VEZÉRLŐ TARTOZÉK | D124: ROAM-KIT | E124: HUNTER | F124: ROAM távirányító Hunter vezérlőkhöz | G124: =VLOOKUP(D124,' '!$1:$1048576,3,0) -> 65470 | I124: db | J124: 1 | K124: Rendelésre! | L124: =G124*H124 -> 0
C125: VEZÉRLŐ TARTOZÉK | D125: ROAMXL-KIT | E125: HUNTER | F125: ROAM XL ipari távirányító Hunter vezérlőkhöz | G125: =VLOOKUP(D125,' '!$1:$1048576,3,0) -> 226054 | I125: db | J125: 1 | K125: Rendelésre! | L125: =G125*H125 -> 0
C127: VEZÉRLŐ TARTOZÉK | D127: 545700 | E127: HUNTER | F127: Trafó H Pro-C, XC vezérlőhöz beltéri | G127: =VLOOKUP(D127,' '!$1:$1048576,3,0) -> 10160 | I127: db | J127: 1 | L127: =G127*H127 -> 0
C128: VEZÉRLŐ TARTOZÉK | D128: 545800 | E128: HUNTER | F128: Trafó H Pro-C,XC vezérlőhöz kültéri | G128: =VLOOKUP(D128,' '!$1:$1048576,3,0) -> 10160 | I128: db | J128: 1 | L128: =G128*H128 -> 0
C130: VEZÉRLŐ TARTOZÉK | D130: TSZ M-20 7-12 | F130: Tömszelence, M-20, IP68, X-Core / Pro-C / PSR / ESP | G130: =VLOOKUP(D130,' '!$1:$1048576,3,0) -> 175 | I130: db | J130: 1 | L130: =G130*H130 -> 0
C131: VEZÉRLŐ TARTOZÉK | D131: TSZ M-25 7-17 | F131: Tömszelence, M-25, IP68, Pro-C / ESP | G131: =VLOOKUP(D131,' '!$1:$1048576,3,0) -> 480 | I131: db | J131: 1 | L131: =G131*H131 -> 0
C132: VEZÉRLŐ TARTOZÉK | D132: TSZ M-32 7-17 | F132: Tömszelence, M-32, IP68, I-CORE | G132: =VLOOKUP(D132,' '!$1:$1048576,3,0) -> 522 | I132: db | J132: 1 | L132: =G132*H132 -> 0
B134: ÉRZÉKELŐK
C136: ÉRZÉKELŐ | D136: miniclick | E136: HUNTER | F136: Mini-Clik esőérzékelő | G136: =VLOOKUP(D136,' '!$1:$1048576,3,0) -> 10718 | I136: db | J136: 24 | K136: Rendelésre! | L136: =G136*H136 -> 0
C138: ÉRZÉKELŐ | D138: RAINCLIK | E138: HUNTER | F138: Rain-Clik esőérzékelő | G138: =VLOOKUP(D138,' '!$1:$1048576,3,0) -> 8613 | I138: db | J138: 24 | L138: =G138*H138 -> 0
C139: ÉRZÉKELŐ | D139: SGM | E139: HUNTER | F139: Rain Clik-hez eresz rögzítő adapter SGM | G139: =VLOOKUP(D139,' '!$1:$1048576,3,0) -> 1087 | I139: db | J139: 1 | L139: =G139*H139 -> 0
C140: ÉRZÉKELŐ | D140: 505900 | E140: HUNTER | F140: Rain Clik-hez duzzadókorong | G140: =VLOOKUP(D140,' '!$1:$1048576,3,0) -> 2161 | I140: db | J140: 1 | L140: =G140*H140 -> 0
C142: ÉRZÉKELŐ | D142: RSD-BEX | E142: RAIN BIRD | F142: RSD-BEX esőérzékelő | G142: =VLOOKUP(D142,' '!$1:$1048576,3,0) -> 10274 | I142: db | J142: 1 | L142: =G142*H142 -> 0
C143: ÉRZÉKELŐ | D143: 850-74 | E143: TORO | F143: TRS esőérzékelő | G143: =VLOOKUP(D143,' '!$1:$1048576,3,0) -> 12324 | I143: db | J143: 1 | L143: =G143*H143 -> 0
C144: ÉRZÉKELŐ | D144: 210.5005300 | E144: ORBIT | F144: RX esőérzékelő | G144: =VLOOKUP(D144,' '!$1:$1048576,3,0) -> 6755 | I144: db | J144: 1 | L144: =G144*H144 -> 0
C146: ÉRZÉKELŐ | D146: HRC WL | E146: HUNTER | F146: Rain-Clik esőérzékelő, VEZETÉK NÉLKÜLI | G146: =VLOOKUP(D146,' '!$1:$1048576,3,0) -> 27009 | I146: db | J146: 1 | L146: =G146*H146 -> 0
C147: ÉRZÉKELŐ | D147: WR2-RFC | E147: RAIN BIRD | F147: Vezeték nélküli WR2 eső- és fagyérzékelő | G147: =VLOOKUP(D147,' '!$1:$1048576,3,0) -> 39421 | I147: db | J147: 1 | L147: =G147*H147 -> 0
C149: ÉRZÉKELŐ | D149: H MWS | E149: HUNTER | F149: Mini meteorológiai állomás, 2 érzékelős (eső, szél) | G149: 65650 | I149: db | J149: 1 | K149: Rendelésre! | L149: =G149*H149 -> 0
C150: ÉRZÉKELŐ | D150: H MWS-FR | E150: HUNTER | F150: Mini meteorológiai állomás, 3 érzékelős (eső, szél, fagy) | G150: =VLOOKUP(D150,' '!$1:$1048576,3,0) -> 87238 | I150: db | J150: 1 | K150: Rendelésre! | L150: =G150*H150 -> 0
C152: ÉRZÉKELŐ | D152: 64392 | E152: HUNTER | F152: Soil Clik talajnedvesség érzékelő | G152: =VLOOKUP(D152,' '!$1:$1048576,3,0) -> 41458 | I152: db | J152: 1 | L152: =G152*H152 -> 0
C153: ÉRZÉKELŐ | D153: SMRT-Y | E153: RAIN BIRD | F153: SMRT-Y talajnedvesség érzékelő | G153: =VLOOKUP(D153,' '!$1:$1048576,3,0) -> 72678 | I153: db | J153: 1 | K153: Rendelésre! | L153: =G153*H153 -> 0
C155: ÉRZÉKELŐ | D155: SOLARSYNC | E155: HUNTER | F155: SolarSync ET érzékelő, PRO-C és ICC vezérlőhöz | G155: =VLOOKUP(D155,' '!$1:$1048576,3,0) -> 41325 | I155: db | J155: 1 | L155: =G155*H155 -> 0
C156: ÉRZÉKELŐ | D156: SOLARSYNCSEN | E156: HUNTER | F156: SolarSync ET érzékelő, MODUL NÉLKÜL | G156: =VLOOKUP(D156,' '!$1:$1048576,3,0) -> 33675 | I156: db | J156: 1 | L156: =G156*H156 -> 0
C157: ÉRZÉKELŐ | D157: WSSSEN | E157: HUNTER | F157: SolarSync ET érzékelő, VEZETÉK-, MODUL NÉLKÜL | G157: =VLOOKUP(D157,' '!$1:$1048576,3,0) -> 64283 | I157: db | J157: 1 | L157: =G157*H157 -> 0
C159: ÉRZÉKELŐ | D159: ET-SYSTEM | E159: HUNTER | F159: ET Sytem fejlett ET érzékelő PRO-C és PCC vezérlőkhöz | G159: =VLOOKUP(D159,' '!$1:$1048576,3,0) -> 148448 | I159: db | J159: 1 | K159: Rendelésre! | L159: =G159*H159 -> 0
C160: ÉRZÉKELŐ | D160: ET-WIND | E160: HUNTER | F160: ET Sytem, szélérzékelő kiegészítés | G160: =VLOOKUP(D160,' '!$1:$1048576,3,0) -> 148448 | I160: db | J160: 1 | K160: Rendelésre! | L160: =G160*H160 -> 0
C162: ÉRZÉKELŐ | D162: FREEZE | E162: HUNTER | F162: Freeze-Clik fagyérzékelő | G162: =VLOOKUP(D162,' '!$1:$1048576,3,0) -> 18125 | I162: db | J162: 1 | K162: Rendelésre! | L162: =G162*H162 -> 0
C164: ÉRZÉKELŐ | D164: Wind-Clik | E164: HUNTER | F164: Wind-Clik szélérzékelő | G164: =VLOOKUP(D164,' '!$1:$1048576,3,0) -> 48978 | I164: db | J164: 1 | K164: Rendelésre! | L164: =G164*H164 -> 0
B166: SZELEPEK
B167: MÁGNESSZELEPEK
C169: MÁGNESSZELEP | D169: PGV 100BB | E169: HUNTER | F169: PGV 24V mágnesszelep, 1" BB | G169: =VLOOKUP(D169,' '!$1:$1048576,3,0) -> 6311 | I169: db | J169: 20 | L169: =G169*H169 -> 0
C170: MÁGNESSZELEP | D170: PGV 100 | E170: HUNTER | F170: PGV 24V mágnesszelep, 1" KK | G170: =VLOOKUP(D170,' '!$1:$1048576,3,0) -> 5332 | I170: db | J170: 20 | L170: 0
C171: MÁGNESSZELEP | D171: PGV 101 | E171: HUNTER | F171: PGV 24V mágnesszelep, 1" KK, átf. szab. | G171: =VLOOKUP(D171,' '!$1:$1048576,3,0) -> 5891 | I171: db | J171: 20 | L171: 0
C172: MÁGNESSZELEP | D172: PGV100JTMMB | E172: HUNTER | F172: PGV 24V mágnesszelep, JAR TOP, 1" KK | G172: =VLOOKUP(D172,' '!$1:$1048576,3,0) -> 6695 | I172: db | J172: 20 | K172: Rendelésre! | L172: 0
C173: MÁGNESSZELEP | D173: PGV-151B | E173: HUNTER | F173: PGV 24V mágnesszelep, 6/4" BB, átf. szab. | G173: =VLOOKUP(D173,' '!$1:$1048576,3,0) -> 16562 | I173: db | J173: 8 | K173: Rendelésre! | L173: 0
C174: MÁGNESSZELEP | D174: PGV-201B | E174: HUNTER | F174: PGV 24V mágnesszelep, 2" BB, átf. szab. | G174: =VLOOKUP(D174,' '!$1:$1048576,3,0) -> 23698 | I174: db | J174: 8 | K174: Rendelésre! | L174: 0
C175: MÁGNESSZELEP | D175: PGV100DC | E175: HUNTER | F175: PGV 9V mágnesszelep, 1" KK | G175: =VLOOKUP(D175,' '!$1:$1048576,3,0) -> 12890 | I175: db | J175: 20 | L175: 0
C176: MÁGNESSZELEP | D176: PGV201DC | E176: HUNTER | F176: PGV 9V mágnesszelep, 2" BB | G176: =VLOOKUP(D176,' '!$1:$1048576,3,0) -> 38941 | I176: db | J176: 8 | K176: Rendelésre! | L176: 0
C178: MÁGNESSZELEP | D178: H ICV-151 | E178: HUNTER | F178: ICV mágnesszelep, 6/4" BB 24V | G178: =VLOOKUP(D178,' '!$1:$1048576,3,0) -> 23837 | I178: db | J178: 8 | K178: Rendelésre! | L178: =G178*H178 -> 0
C180: MÁGNESSZELEP | D180: 100-HV-MM | E180: RAIN BIRD | F180: HV-100 24V mágnesszelep, 1" KK | G180: =VLOOKUP(D180,' '!$1:$1048576,3,0) -> 5015 | I180: db | J180: 20 | L180: =G180*H180 -> 0
C181: MÁGNESSZELEP | D181: 100-HVF-FF | E181: RAIN BIRD | F181: HV-100 24V mágnesszelep, 1" BB, átf. szab. | G181: =VLOOKUP(D181,' '!$1:$1048576,3,0) -> 6494 | I181: db | J181: 20 | L181: =G181*H181 -> 0
C183: MÁGNESSZELEP | D183: 100-DV-MM | E183: RAIN BIRD | F183: DV-100 mágnesszelep 1" KK 24V | G183: =VLOOKUP(D183,' '!$1:$1048576,3,0) -> 7880 | I183: db | J183: 20 | L183: =G183*H183 -> 0
C184: MÁGNESSZELEP | D184: 100-DV-MM 9V | E184: RAIN BIRD | F184: DV-100 mágnesszelep 1" KK 9V | G184: =VLOOKUP(D184,' '!$1:$1048576,3,0) -> 13020 | I184: db | J184: 20 | L184: =G184*H184 -> 0
C185: MÁGNESSZELEP | D185: 100-DV-FF 24V | E185: RAIN BIRD | F185: DV-100 mágnesszelep 1" BB | G185: =VLOOKUP(D185,' '!$1:$1048576,3,0) -> 7650 | I185: db | J185: 20 | L185: =G185*H185 -> 0
C186: MÁGNESSZELEP | D186: 101-DV-FF | E186: RAIN BIRD | F186: DVF-100 mágnesszelep 1" BB átfolyás szabályozóval | G186: =VLOOKUP(D186,' '!$1:$1048576,3,0) -> 10210 | I186: db | J186: 20 | L186: =G186*H186 -> 0
C188: MÁGNESSZELEP | D188: 150-PGA | E188: RAIN BIRD | F188: PGA 150 mágnesszelep 6/4" BB 24V | G188: =VLOOKUP(D188,' '!$1:$1048576,3,0) -> 17376 | I188: db | J188: 8 | K188: Rendelésre! | L188: =G188*H188 -> 0
C189: MÁGNESSZELEP | D189: 200-PGA | E189: RAIN BIRD | F189: PGA 200 mágnesszelep 2" BB 24V | G189: =VLOOKUP(D189,' '!$1:$1048576,3,0) -> 30818 | I189: db | J189: 4 | K189: Rendelésre! | L189: =G189*H189 -> 0
C191: MÁGNESSZELEP | D191: 100-PEB | E191: RAIN BIRD | F191: 100-PEB mágnesszelep 1" BM 24V | G191: Érdeklődjön! | I191: db | J191: 10 | K191: Rendelésre! | L191: Érdeklődjön!
C192: MÁGNESSZELEP | D192: 150-PEB | E192: RAIN BIRD | F192: 150-PEB mágnesszelep 6/4" BM 24V | G192: Érdeklődjön! | I192: db | J192: 8 | K192: Rendelésre! | L192: Érdeklődjön!
C193: MÁGNESSZELEP | D193: 200-PEB | E193: RAIN BIRD | F193: 200-PEB mágnesszelep 2" BM | G193: Érdeklődjön! | I193: db | J193: 8 | K193: Rendelésre! | L193: Érdeklődjön!
C194: MÁGNESSZELEP | D194: 300-PEB | E194: RAIN BIRD | F194: 300-BPE mágnesszelep, bronz+müa tető, átf.szab. 3" BM 24V | G194: Érdeklődjön! | I194: db | J194: 1 | K194: Rendelésre! | L194: Érdeklődjön!
C195: MÁGNESSZELEP | D195: 300-PEB | E195: RAIN BIRD | F195: 300-BPES mágn, bronz+müa tető, átf.szab., öntisztító 3" BM 24V | G195: Érdeklődjön! | I195: db | J195: 1 | K195: Rendelésre! | L195: Érdeklődjön!
C197: MÁGNESSZELEP | D197: PRS-DIAL | E197: RAIN BIRD | F197: PRS-DIAL nyomásszabályozó (PGA, PEB) | G197: =VLOOKUP(D197,' '!$1:$1048576,3,0) -> 21957 | I197: db | J197: 1 | L197: =G197*H197 -> 0
C199: MÁGNESSZELEP | D199: 100.4400711 | E199: RAIN | F199: Rain RN150 mágnesszelep, 3/4" KK, 24V | G199: =VLOOKUP(D199,' '!$1:$1048576,3,0) -> 3432 | I199: db | J199: 24 | L199: =G199*H199 -> 0
C200: MÁGNESSZELEP | D200: 100.4400911 | E200: RAIN | F200: Rain RN150 mágnesszelep, 1" KK 24V | G200: =VLOOKUP(D200,' '!$1:$1048576,3,0) -> 3392 | I200: db | J200: 24 | L200: =G200*H200 -> 0
C202: MÁGNESSZELEP | D202: 100.1560916 | E202: RAIN | F202: Rain RN155 átf. szab. mágnesszelep, 1" KM x HOLL 24V | G202: =VLOOKUP(D202,' '!$1:$1048576,3,0) -> 4271 | I202: db | J202: 24 | L202: =G202*H202 -> 0
C203: MÁGNESSZELEP | D203: 100.1560911 | E203: RAIN | F203: Rain RN155 átf. szab. mágnesszelep, 1" KK 24V | G203: =VLOOKUP(D203,' '!$1:$1048576,3,0) -> 4130 | I203: db | J203: 24 | L203: =G203*H203 -> 0
C205: MÁGNESSZELEP | D205: 100.5701511 | E205: RAIN | F205: Rain RN160 mágnesszelep, 6/4" BB 24V | G205: =VLOOKUP(D205,' '!$1:$1048576,3,0) -> 10279 | I205: db | J205: 24 | L205: =G205*H205 -> 0
C207: MÁGNESSZELEP | D207: 264-06-03 | E207: TORO | F207: 264-es mágnesszelep, 3/4" KK, 24VAC | G207: =VLOOKUP(D207,' '!$1:$1048576,3,0) -> 10407 | I207: db | J207: 20 | L207: =G207*H207 -> 0
C208: MÁGNESSZELEP | D208: EZFLO+ | E208: TORO | F208: Ez-Flo Plus mágnesszelep, 1" KK 24V | G208: =VLOOKUP(D208,' '!$1:$1048576,3,0) -> 7451 | I208: db | J208: 20 | L208: =G208*H208 -> 0
B210: SZOLENOIDOK
C212: SZOLENOID | D212: HUNTER-SOL | E212: HUNTER | F212: Szolenoid PGV, ICV, IBV mágnesszelephez 24V | G212: =VLOOKUP(D212,' '!$1:$1048576,3,0) -> 4055 | I212: db | J212: 1 | L212: =G212*H212 -> 0
C213: SZOLENOID | D213: 458200 | E213: HUNTER | F213: Szolenoid PGV, ICV, IBV mágnesszelephez 9V | G213: =VLOOKUP(D213,' '!$1:$1048576,3,0) -> 9000 | I213: db | J213: 1 | L213: =G213*H213 -> 0
C215: SZOLENOID | D215: DV-SOL-24V | E215: RAIN BIRD | F215: Szolenoid DV mágnesszelephez 24V | G215: =VLOOKUP(D215,' '!$1:$1048576,3,0) -> 4598 | I215: db | J215: 1 | L215: =G215*H215 -> 0
C216: SZOLENOID | D216: DV-SOL-9V | E216: RAIN BIRD | F216: Szolenoid DV mágnesszelephez 9V | G216: =VLOOKUP(D216,' '!$1:$1048576,3,0) -> 7453 | I216: db | J216: 1 | L216: =G216*H216 -> 0
A218: ÚJ | C218: SZOLENOID | D218: PGA-SOL-24V | E218: RAIN BIRD | F218: Szolenoid PGA mágnesszelephez 24V | G218: =VLOOKUP(D218,' '!$1:$1048576,3,0) -> 4598 | I218: db | J218: 1 | L218: =G218*H218 -> 0
C220: SZOLENOID | D220: 101.1001101 | E220: RAIN | F220: Szolenoid RAIN mágnesszelephez 24V | G220: =VLOOKUP(D220,' '!$1:$1048576,3,0) -> 3021 | I220: db | J220: 1 | L220: =G220*H220 -> 0
C221: SZOLENOID | D221: 101.3507000 | E221: RAIN | F221: Szolenoid RAIN mágnesszelephez 9V | G221: =VLOOKUP(D221,' '!$1:$1048576,3,0) -> 3357 | I221: db | J221: 1 | L221: =G221*H221 -> 0
B223: AUTOMATA ÜRÍTŐ-, LÉGBESZÍVÓ SZELEPEK
C225: AUTÓMATA ÜRÍTŐSZELEP | D225: 16A-FDV | E225: RAIN BIRD | F225: Automata ürítőszelep KM 1/2" | G225: =VLOOKUP(D225,' '!$1:$1048576,3,0) -> 2057 | I225: db | J225: 50 | L225: =G225*H225 -> 0
A226: ÚJ | C226: AUTÓMATA ÜRÍTŐSZELEP | D226: 8006410376 | F226: Automata ürítőszelep KM 3/4" | G226: =VLOOKUP(D226,' '!$1:$1048576,3,0) -> 1176 | I226: db | J226: 25 | L226: =G226*H226 -> 0
A228: ÚJ | C228: AUTÓMATA ÜRÍTŐSZELEP | D228: IVFL250 | E228: IRRITEC | F228: Automata ürítőszelep BM 3/4", csepegtető csőre | G228: =VLOOKUP(D228,' '!$1:$1048576,3,0) -> 174 | I228: db | J228: 50 | L228: =G228*H228 -> 0
A230: ÚJ | C230: AUTÓMATA ÜRÍTŐSZELEP | D230: 8006410194 | F230: Automata ürítőszelep 16 mm, csepegtető csőre | G230: =VLOOKUP(D230,' '!$1:$1048576,3,0) -> 380 | I230: db | J230: 50 | L230: =G230*H230 -> 0
A232: ÚJ | C232: LÉGBESZÍVÓ SZELEP | D232: 08006410383 | F232: Légbeszívó szelep, KM 1/2" | G232: =VLOOKUP(D232,' '!$1:$1048576,3,0) -> 323 | I232: m | J232: 50 | L232: =G232*H232 -> 0
A233: ÚJ | C233: LÉGBESZÍVÓ SZELEP | D233: XBER12 | E233: RAIN BIRD | F233: Légbeszívó szelep, KM 1/2" | G233: =VLOOKUP(D233,' '!$1:$1048576,3,0) -> 1060 | I233: m | J233: 25 | L233: =G233*H233 -> 0
B235: SPRAY SZÓRÓFEJEK
B236: SPRAY SZÓRÓFEJ HÁZAK
C238: SPRAY SZÓRÓFEJ HÁZ | D238: PSU-04 | E238: HUNTER | F238: PS 04 Ultra szórófejház | G238: =VLOOKUP(D238,' '!$1:$1048576,3,0) -> 855 | I238: db | J238: 100 | L238: =G238*H238 -> 0
C240: SPRAY SZÓRÓFEJ HÁZ | D240: PSU0410A | E240: HUNTER | F240: PS 04 Ultra 10A Hunter szórófej fúvókával | G240: =VLOOKUP(D240,' '!$1:$1048576,3,0) -> 1360 | I240: db | J240: 50 | K240: Rendelésre! | L240: =G240*H240 -> 0
C241: SPRAY SZÓRÓFEJ HÁZ | D241: PSU0412A | E241: HUNTER | F241: PS 04 Ultra 12A Hunter szórófej fúvókával | G241: =VLOOKUP(D241,' '!$1:$1048576,3,0) -> 1360 | I241: db | J241: 50 | K241: Rendelésre! | L241: =G241*H241 -> 0
C242: SPRAY SZÓRÓFEJ HÁZ | D242: PSU0415A | E242: HUNTER | F242: PS 04 Ultra 15A Hunter szórófej fúvókával | G242: =VLOOKUP(D242,' '!$1:$1048576,3,0) -> 1360 | I242: db | J242: 50 | K242: Rendelésre! | L242: =G242*H242 -> 0
C243: SPRAY SZÓRÓFEJ HÁZ | D243: PSU0417A | E243: HUNTER | F243: PS 04 Ultra 17A Hunter szórófej fúvókával | G243: =VLOOKUP(D243,' '!$1:$1048576,3,0) -> 1360 | I243: db | J243: 50 | K243: Rendelésre! | L243: =G243*H243 -> 0
C245: SPRAY SZÓRÓFEJ HÁZ | D245: ECO041090 | E245: HUNTER | F245: Eco Rotator MP 1000 90-210 | G245: =VLOOKUP(D245,' '!$1:$1048576,3,0) -> 3380 | I245: db | J245: 50 | K245: Rendelésre! | L245: =G245*H245 -> 0
C246: SPRAY SZÓRÓFEJ HÁZ | D246: ECO042090 | E246: HUNTER | F246: Eco Rotator MP 2000 90-210 | G246: =VLOOKUP(D246,' '!$1:$1048576,3,0) -> 3380 | I246: db | J246: 50 | K246: Rendelésre! | L246: =G246*H246 -> 0
C247: SPRAY SZÓRÓFEJ HÁZ | D247: ECO043090 | E247: HUNTER | F247: Eco Rotator MP 3000 90-210 | G247: =VLOOKUP(D247,' '!$1:$1048576,3,0) -> 3380 | I247: db | J247: 50 | K247: Rendelésre! | L247: =G247*H247 -> 0
C249: SPRAY SZÓRÓFEJ HÁZ | D249: PROS-00 | E249: HUNTER | F249: PROS-00, shrub adapter, BM 1/2" | G249: =VLOOKUP(D249,' '!$1:$1048576,3,0) -> 330 | I249: db | J249: 25 | L249: =G249*H249 -> 0
C250: SPRAY SZÓRÓFEJ HÁZ | D250: PROS-02 | E250: HUNTER | F250: Pro-Spray szórófej HÁZ, 5 cm kiemelkedés | G250: =VLOOKUP(D250,' '!$1:$1048576,3,0) -> 940 | I250: db | J250: 50 | L250: =G250*H250 -> 0
C251: SPRAY SZÓRÓFEJ HÁZ | D251: PROS-03 | E251: HUNTER | F251: Pro-Spray szórófej HÁZ, 7,5cm kiemelkedés | G251: =VLOOKUP(D251,' '!$1:$1048576,3,0) -> 940 | I251: db | J251: 50 | K251: Rendelésre! | L251: =G251*H251 -> 0
C252: SPRAY SZÓRÓFEJ HÁZ | D252: PROS-04 | E252: HUNTER | F252: Pro-Spray szórófej HÁZ, 10 cm kiemelkedés | G252: =VLOOKUP(D252,' '!$1:$1048576,3,0) -> 890 | I252: db | J252: 50 | L252: =G252*H252 -> 0
C253: SPRAY SZÓRÓFEJ HÁZ | D253: PROS-12 | E253: HUNTER | F253: Pro-Spray szórófej HÁZ, 30 cm kiemelkedés | G253: =VLOOKUP(D253,' '!$1:$1048576,3,0) -> 4828 | I253: db | J253: 25 | L253: =G253*H253 -> 0
C255: SPRAY SZÓRÓFEJ HÁZ | D255: PROS-04-PRS30-CV | E255: HUNTER | F255: Pro-Spray PRS-30-CV szórófej HÁZ, 10 cm, 2.1bar | G255: =VLOOKUP(D255,' '!$1:$1048576,3,0) -> 2823 | I255: db | J255: 50 | K255: Rendelésre! | L255: =G255*H255 -> 0
C256: SPRAY SZÓRÓFEJ HÁZ | D256: PROS-04-PRS40-CV | E256: HUNTER | F256: Pro-Spray PRS-40-CV szórófej HÁZ, 10 cm, 2.8bar | G256: =VLOOKUP(D256,' '!$1:$1048576,3,0) -> 2498 | I256: db | J256: 50 | K256: Rendelésre! | L256: =G256*H256 -> 0
C258: SPRAY SZÓRÓFEJ HÁZ | D258: US-400 | E258: RAIN BIRD | F258: UniSpray szórófejház,10cm kiem | G258: =VLOOKUP(D258,' '!$1:$1048576,3,0) -> 610 | I258: db | J258: 50 | L258: =G258*H258 -> 0
C260: SPRAY SZÓRÓFEJ HÁZ | D260: US-410 | E260: RAIN BIRD | F260: UniSpray szórófejház,10cm kiem + 10 VAN fúvóka | G260: =VLOOKUP(D260,' '!$1:$1048576,3,0) -> 906 | I260: db | J260: 50 | K260: Rendelésre! | L260: =G260*H260 -> 0
C261: SPRAY SZÓRÓFEJ HÁZ | D261: US-412 | E261: RAIN BIRD | F261: UniSpray szórófejház,10cm kiem + 12 VAN fúvóka | G261: =VLOOKUP(D261,' '!$1:$1048576,3,0) -> 906 | I261: db | J261: 50 | K261: Rendelésre! | L261: =G261*H261 -> 0
C262: SPRAY SZÓRÓFEJ HÁZ | D262: US-415 | E262: RAIN BIRD | F262: UniSpray szórófejház,10cm kiem + 15 VAN fúvóka | G262: =VLOOKUP(D262,' '!$1:$1048576,3,0) -> 906 | I262: db | J262: 50 | K262: Rendelésre! | L262: =G262*H262 -> 0
C263: SPRAY SZÓRÓFEJ HÁZ | D263: US-418 | E263: RAIN BIRD | F263: UniSpray szórófejház,10cm kiem + 18 VAN fúvóka | G263: =VLOOKUP(D263,' '!$1:$1048576,3,0) -> 906 | I263: db | J263: 50 | K263: Rendelésre! | L263: =G263*H263 -> 0
C265: SPRAY SZÓRÓFEJ HÁZ | D265: RPA8S | E265: RAIN BIRD | F265: 1800-S, nemkiemelkedő (shrub)adapter,1/2 | G265: =VLOOKUP(D265,' '!$1:$1048576,3,0) -> 376 | I265: db | J265: 25 | L265: =G265*H265 -> 0
C266: SPRAY SZÓRÓFEJ HÁZ | D266: 1803 | E266: RAIN BIRD | F266: 1803-as szórófej HÁZ, 7.5 cm kiem. | G266: =VLOOKUP(D266,' '!$1:$1048576,3,0) -> 1073 | I266: db | J266: 75 | L266: =G266*H266 -> 0
C267: SPRAY SZÓRÓFEJ HÁZ | D267: 1804 | E267: RAIN BIRD | F267: 1804-es szórófej HÁZ, 10 cm kiemelkedés | G267: =VLOOKUP(D267,' '!$1:$1048576,3,0) -> 753 | I267: db | J267: 75 | L267: =G267*H267 -> 0
C268: SPRAY SZÓRÓFEJ HÁZ | D268: 1812 | E268: RAIN BIRD | F268: 1812-es szórófej HÁZ, 30 cm kiemelkedés | G268: =VLOOKUP(D268,' '!$1:$1048576,3,0) -> 4589 | I268: db | J268: 50 | L268: =G268*H268 -> 0
C270: SPRAY SZÓRÓFEJ HÁZ | D270: 1804-SAM | E270: RAIN BIRD | F270: 1804-es szórófej HÁZ, 10 cm kiemelkedés, visszfolyásgátlóval | G270: =VLOOKUP(D270,' '!$1:$1048576,3,0) -> 1836 | I270: db | J270: 75 | L270: =G270*H270 -> 0
C271: SPRAY SZÓRÓFEJ HÁZ | D271: 1812-SAM | E271: RAIN BIRD | F271: 1812-es szórófej HÁZ, 30 cm kiemelkedés, visszfolyásgátlóval | G271: =VLOOKUP(D271,' '!$1:$1048576,3,0) -> 3134 | I271: db | J271: 50 | K271: Rendelésre! | L271: =G271*H271 -> 0
A273: ÚJ | C273: SPRAY SZÓRÓFEJ HÁZ | D273: 280.1300400 | E273: RAIN | F273: S020 szórófej HÁZ, 10 cm kiemelkedés | G273: =VLOOKUP(D273,' '!$1:$1048576,3,0) -> 490 | I273: db | J273: 50 | L273: =G273*H273 -> 0
C275: SPRAY SZÓRÓFEJ HÁZ | D275: 9-6807 | E275: TORO | F275: 570S, nem kiemelkedő (shrub)adapter,1/2" | G275: =VLOOKUP(D275,' '!$1:$1048576,3,0) -> 272 | I275: db | J275: 100 | K275: Rendelésre! | L275: =G275*H275 -> 0
C276: SPRAY SZÓRÓFEJ HÁZ | D276: 89-5807 | E276: TORO | F276: 570Z 2P szórófej, 5cm kiemelkedés | G276: =VLOOKUP(D276,' '!$1:$1048576,3,0) -> 1074 | I276: db | J276: 100 | L276: =G276*H276 -> 0
C277: SPRAY SZÓRÓFEJ HÁZ | D277: 89-3977 | E277: TORO | F277: 570Z 3P szórófej, 7.5cm kiemelkedés | G277: =VLOOKUP(D277,' '!$1:$1048576,3,0) -> 1225 | I277: db | J277: 100 | L277: =G277*H277 -> 0
C278: SPRAY SZÓRÓFEJ HÁZ | D278: 89-3978 | E278: TORO | F278: 570Z 4P szórófej, 10cm kiemelkedés | G278: =VLOOKUP(D278,' '!$1:$1048576,3,0) -> 1006 | I278: db | J278: 50 | L278: =G278*H278 -> 0
C279: SPRAY SZÓRÓFEJ HÁZ | D279: 89-3982 | E279: TORO | F279: 570Z 12P szórófej, 30cm kiemelkedés | G279: =VLOOKUP(D279,' '!$1:$1048576,3,0) -> 5632 | I279: db | J279: 25 | K279: Rendelésre! | L279: =G279*H279 -> 0
C281: SPRAY SZÓRÓFEJ HÁZ | D281: 89-4722 | E281: TORO | F281: 570Z 3P COM szórófej, 7.5cm kiem., VFG | G281: =VLOOKUP(D281,' '!$1:$1048576,3,0) -> 1810 | I281: db | J281: 100 | L281: =G281*H281 -> 0
C282: SPRAY SZÓRÓFEJ HÁZ | D282: 89-4723 | E282: TORO | F282: 570Z 4P COM szórófej, 10cm kiem., VFG | G282: =VLOOKUP(D282,' '!$1:$1048576,3,0) -> 2414 | I282: db | J282: 50 | L282: =G282*H282 -> 0
B284: SPRAY FÚVÓKÁK
C286: ÁLLÍTHATÓ SPRAY FÚVÓKA | D286: H 4A | E286: HUNTER | F286: 4'A állítható szórásképű fúvóka (R=1.2m; 0-360°) | G286: =VLOOKUP(D286,' '!$1:$1048576,3,0) -> 530 | I286: db | J286: 25 | L286: =G286*H286 -> 0
C287: ÁLLÍTHATÓ SPRAY FÚVÓKA | D287: H 6A | E287: HUNTER | F287: 6'A állítható szórásképű fúvóka (R=1.8m; 0-360°) | G287: =VLOOKUP(D287,' '!$1:$1048576,3,0) -> 530 | I287: db | J287: 25 | L287: 0
... 1027 more rows

Sheet  (hidden)
A1: Azonosító | B1: Cikk megnevezése | C1: 1.nettó ár
A2: 10-HE VAN | B2: 10 HE VAN áll. fúvóka Rain Bird, (R=3.0m; 0-360°) | C2: 625 | D2: =IF(#REF!=A2, "Egyezik", "Nem egyezik") -> 
A3: 10-VAN | B3: 10 VAN áll. fúvóka Rain Bird, (R=3.0m; 0-360°) | C3: 570 | D3: =IF(#REF!=A3, "Egyezik", "Nem egyezik") -> 
A4: H 10A | B4: 10'A áll. fúvóka Hunter, (R=3.0m; 0-360°) | C4: 530 | D4: =IF(#REF!=A4, "Egyezik", "Nem egyezik") -> 
A5: H10F | B5: 10'F fúvóka Hunter, (R=3.0m; 360°) | C5: 530 | D5: =IF(#REF!=A5, "Egyezik", "Nem egyezik") -> 
A6: R10-F | B6: 10'F fúvóka Rain Bird | C6: 600 | D6: =IF(#REF!=A6, "Egyezik", "Nem egyezik") -> 
A7: 89-1437 | B7: 10-F-PC fúvóka Toro | C7: 598 | D7: =IF(#REF!=A7, "Egyezik", "Nem egyezik") -> 
A8: H 10H | B8: 10'H fúvóka Hunter, (R=3.0m; 180°) | C8: 530 | D8: =IF(#REF!=A8, "Egyezik", "Nem egyezik") -> 
A9: R10-H | B9: 10'H fúvóka Rain Bird | C9: 600 | D9: =IF(#REF!=A9, "Egyezik", "Nem egyezik") -> 
A10: O-T-10-HP | B10: 10-H Pecision fúvóka Toro | C10: 1624 | D10: =IF(#REF!=A10, "Egyezik", "Nem egyezik") -> 
A11: 89-1446 | B11: 10-H-PC fúvóka Toro | C11: 598 | D11: =IF(#REF!=A11, "Egyezik", "Nem egyezik") -> 
A12: H-10-Q | B12: 10'Q fúvóka Hunter, (R=3.0m; 90°) | C12: 530 | D12: =IF(#REF!=A12, "Egyezik", "Nem egyezik") -> 
A13: R10-Q | B13: 10'Q fúvóka Rain Bird | C13: 600 | D13: =IF(#REF!=A13, "Egyezik", "Nem egyezik") -> 
A14: 89-1452 | B14: 10-Q-PC fúvóka Toro | C14: 598 | D14: =IF(#REF!=A14, "Egyezik", "Nem egyezik") -> 
A15: 89-1519 | B15: 10-SSF-PC fúvóka Toro | C15: 598 | D15: =IF(#REF!=A15, "Egyezik", "Nem egyezik") -> 
A16: 89-1521 | B16: 10-SSH-PC fúvóka Toro | C16: 598 | D16: =IF(#REF!=A16, "Egyezik", "Nem egyezik") -> 
A17: 89-1547 | B17: 10-SSQ-PC fúvóka Toro | C17: 598 | D17: =IF(#REF!=A17, "Egyezik", "Nem egyezik") -> 
A18: R10-T | B18: 10'T fúvóka Rain Bird | C18: 600 | D18: =IF(#REF!=A18, "Egyezik", "Nem egyezik") -> 
A19: 89-1449 | B19: 10-T-PC fúvóka Toro | C19: 598 | D19: =IF(#REF!=A19, "Egyezik", "Nem egyezik") -> 
A20: O-T-10-TQP | B20: 10-TQ Pecision fúvóka Toro | C20: 1624 | D20: =IF(#REF!=A20, "Egyezik", "Nem egyezik") -> 
A21: 89-1440 | B21: 10-TQ-PC fúvóka Toro | C21: 598 | D21: =IF(#REF!=A21, "Egyezik", "Nem egyezik") -> 
A22: 89-1443 | B22: 10-TT-PC fúvóka Toro | C22: 598 | D22: =IF(#REF!=A22, "Egyezik", "Nem egyezik") -> 
A23: 10-TVAN | B23: 10-TVAN, KVAN áll. fúvóka Toro | C23: 670 | D23: =IF(#REF!=A23, "Egyezik", "Nem egyezik") -> 
A24: 12-HE VAN | B24: 12 HE VAN áll. fúvóka Rain Bird, (R=3.6m; 0-360°) | C24: 625 | D24: =IF(#REF!=A24, "Egyezik", "Nem egyezik") -> 
A25: 12-VAN | B25: 12 VAN áll. fúvóka Rain Bird, (R=3.6m; 0-360°) | C25: 570 | D25: =IF(#REF!=A25, "Egyezik", "Nem egyezik") -> 
A26: H 12A | B26: 12'A áll. fúvóka Hunter, (R=3.6m; 0-360°) | C26: 530 | D26: =IF(#REF!=A26, "Egyezik", "Nem egyezik") -> 
A27: H12F | B27: 12'F fúvóka Hunter, (R=3.6m; 360°) | C27: 530 | D27: =IF(#REF!=A27, "Egyezik", "Nem egyezik") -> 
A28: R12-F | B28: 12'F fúvóka Rain Bird | C28: 600 | D28: =IF(#REF!=A28, "Egyezik", "Nem egyezik") -> 
A29: O-T-12-FP | B29: 12-F Pecision fúvóka Toro | C29: 1624 | D29: =IF(#REF!=A29, "Egyezik", "Nem egyezik") -> 
A30: 89-1419 | B30: 12-F-PC fúvóka Toro | C30: 598 | D30: =IF(#REF!=A30, "Egyezik", "Nem egyezik") -> 
A31: H 12H | B31: 12'H fúvóka Hunter, (R=3.6m; 180°) | C31: 530 | D31: =IF(#REF!=A31, "Egyezik", "Nem egyezik") -> 
A32: R12-H | B32: 12'H fúvóka Rain Bird | C32: 600 | D32: =IF(#REF!=A32, "Egyezik", "Nem egyezik") -> 
A33: O-T-12-HP | B33: 12-H Pecision fúvóka Toro | C33: 1624 | D33: =IF(#REF!=A33, "Egyezik", "Nem egyezik") -> 
A34: 89-1428 | B34: 12-H-PC fúvóka Toro | C34: 598 | D34: =IF(#REF!=A34, "Egyezik", "Nem egyezik") -> 
A35: H 12Q | B35: 12'Q fúvóka Hunter, (R=3.6m; 90°) | C35: 530 | D35: =IF(#REF!=A35, "Egyezik", "Nem egyezik") -> 
A36: R12-Q | B36: 12'Q fúvóka Rain Bird | C36: 600 | D36: =IF(#REF!=A36, "Egyezik", "Nem egyezik") -> 
A37: O-T-12-QP | B37: 12-Q Pecision fúvóka Toro | C37: 1624 | D37: =IF(#REF!=A37, "Egyezik", "Nem egyezik") -> 
A38: 89-1434 | B38: 12-Q-PC fúvóka Toro | C38: 598 | D38: =IF(#REF!=A38, "Egyezik", "Nem egyezik") -> 
A39: R12-T | B39: 12'T fúvóka Rain Bird | C39: 600 | D39: =IF(#REF!=A39, "Egyezik", "Nem egyezik") -> 
A40: 89-1431 | B40: 12-T-PC fúvóka Toro | C40: 598 | D40: =IF(#REF!=A40, "Egyezik", "Nem egyezik") -> 
A41: R12/TQ | B41: 12'TQ fúvóka Rain Bird | C41: 600 | D41: =IF(#REF!=A41, "Egyezik", "Nem egyezik") -> 
A42: 89-1422 | B42: 12-TQ-PC fúvóka Toro | C42: 598 | D42: =IF(#REF!=A42, "Egyezik", "Nem egyezik") -> 
A43: R12-TT | B43: 12'TT fúvóka Rain Bird | C43: 600 | D43: =IF(#REF!=A43, "Egyezik", "Nem egyezik") -> 
A44: O-T-12-TTP | B44: 12-TT Pecision fúvóka Toro | C44: 1624 | D44: =IF(#REF!=A44, "Egyezik", "Nem egyezik") -> 
A45: 89-1425 | B45: 12-TT-PC fúvóka Toro | C45: 598 | D45: =IF(#REF!=A45, "Egyezik", "Nem egyezik") -> 
A46: 12-TVAN | B46: 12-TVAN, KVAN áll. fúvóka Toro | C46: 670 | D46: =IF(#REF!=A46, "Egyezik", "Nem egyezik") -> 
A47: R1401 | B47: 1401 Bubbler fúvóka 1/2" BM | C47: 1966 | D47: =IF(#REF!=A47, "Egyezik", "Nem egyezik") -> 
A48: 15-HE VAN | B48: 15 HE VAN áll. fúvóka Rain Bird, (R=4.5m; 0-360°) | C48: 625 | D48: =IF(#REF!=A48, "Egyezik", "Nem egyezik") -> 
A49: 15-VAN | B49: 15 VAN áll. fúvóka Rain Bird, (R=4.5m; 0-360°) | C49: 570 | D49: =IF(#REF!=A49, "Egyezik", "Nem egyezik") -> 
A50: H 15A | B50: 15'A áll. fúvóka Hunter, (R=4.5m; 0-360°) | C50: 530 | D50: =IF(#REF!=A50, "Egyezik", "Nem egyezik") -> 
A51: R15-CST | B51: 15'CST fúvóka Rain Bird | C51: 600 | D51: =IF(#REF!=A51, "Egyezik", "Nem egyezik") -> 
A52: R15-EST | B52: 15'EST fúvóka Rain Bird | C52: 600 | D52: =IF(#REF!=A52, "Egyezik", "Nem egyezik") -> 
A53: H 15F | B53: 15'F fúvóka Hunter, (R=4.5m; 360°) | C53: 530 | D53: =IF(#REF!=A53, "Egyezik", "Nem egyezik") -> 
A54: R15-F | B54: 15'F fúvóka Rain Bird | C54: 600 | D54: =IF(#REF!=A54, "Egyezik", "Nem egyezik") -> 
A55: 89-1401 | B55: 15-F-PC fúvóka Toro | C55: 598 | D55: =IF(#REF!=A55, "Egyezik", "Nem egyezik") -> 
A56: H 15H | B56: 15'H fúvóka Hunter, (R=4.5m; 180°) | C56: 530 | D56: =IF(#REF!=A56, "Egyezik", "Nem egyezik") -> 
A57: R15-H | B57: 15'H fúvóka Rain Bird | C57: 600 | D57: =IF(#REF!=A57, "Egyezik", "Nem egyezik") -> 
A58: O-T-15-HP | B58: 15-H Pecision fúvóka Toro | C58: 1624 | D58: =IF(#REF!=A58, "Egyezik", "Nem egyezik") -> 
A59: K-15HL | B59: 15-HL fúvóka Toro | C59: 598 | D59: =IF(#REF!=A59, "Egyezik", "Nem egyezik") -> 
A60: 89-1410 | B60: 15-H-PC fúvóka Toro | C60: 598 | D60: =IF(#REF!=A60, "Egyezik", "Nem egyezik") -> 
A61: R15-LCS | B61: 15'LCS fúvóka Rain Bird | C61: 600 | D61: =IF(#REF!=A61, "Egyezik", "Nem egyezik") -> 
A62: H 15Q | B62: 15'Q fúvóka Hunter, (R=4.5m; 90°) | C62: 530 | D62: =IF(#REF!=A62, "Egyezik", "Nem egyezik") -> 
A63: R15-Q | B63: 15'Q fúvóka Rain Bird | C63: 600 | D63: =IF(#REF!=A63, "Egyezik", "Nem egyezik") -> 
A64: O-T-15-QP | B64: 15-Q Pecision fúvóka Toro | C64: 1624 | D64: =IF(#REF!=A64, "Egyezik", "Nem egyezik") -> 
A65: 89-1416 | B65: 15-Q-PC fúvóka Toro | C65: 598 | D65: =IF(#REF!=A65, "Egyezik", "Nem egyezik") -> 
A66: R15-RCS | B66: 15'RCS fúvóka Rain Bird | C66: 600 | D66: =IF(#REF!=A66, "Egyezik", "Nem egyezik") -> 
A67: RB-15SQ | B67: 15'SQ-fúvóka Rain Bird | C67: 600 | D67: =IF(#REF!=A67, "Egyezik", "Nem egyezik") -> 
A68: R15-SST | B68: 15'SST fúvóka Rain Bird | C68: 600 | D68: =IF(#REF!=A68, "Egyezik", "Nem egyezik") -> 
A69: R15/T | B69: 15'T fúvóka RainBird | C69: 600 | D69: =IF(#REF!=A69, "Egyezik", "Nem egyezik") -> 
A70: O-T-15-TP | B70: 15-T Pecision fúvóka Toro | C70: 1624 | D70: =IF(#REF!=A70, "Egyezik", "Nem egyezik") -> 
A71: 89-1413 | B71: 15-T-PC fúvóka Toro | C71: 598 | D71: =IF(#REF!=A71, "Egyezik", "Nem egyezik") -> 
A72: R15/TQ | B72: 15'TQ fúvóka RainBird | C72: 600 | D72: =IF(#REF!=A72, "Egyezik", "Nem egyezik") -> 
A73: 89-1404 | B73: 15-TQ-PC fúvóka Toro | C73: 598 | D73: =IF(#REF!=A73, "Egyezik", "Nem egyezik") -> 
A74: R15-TT | B74: 15'TT fúvóka Rain Bird | C74: 600 | D74: =IF(#REF!=A74, "Egyezik", "Nem egyezik") -> 
A75: 89-1407 | B75: 15-TT-PC fúvóka Toro | C75: 598 | D75: =IF(#REF!=A75, "Egyezik", "Nem egyezik") -> 
A76: 15-TVAN | B76: 15-TVAN, KVAN áll. fúvóka Toro | C76: 670 | D76: =IF(#REF!=A76, "Egyezik", "Nem egyezik") -> 
A77: 89-7418 | B77: 15-V áll. fúvóka Toro | C77: 598 | D77: =IF(#REF!=A77, "Egyezik", "Nem egyezik") -> 
A78: R16-F-SLA | B78: 16F SLA fúvóka Rain Bird | C78: 600 | D78: =IF(#REF!=A78, "Egyezik", "Nem egyezik") -> 
A79: R16H-SLA | B79: 16H SLA fúvóka Rain Bird | C79: 600 | D79: =IF(#REF!=A79, "Egyezik", "Nem egyezik") -> 
A80: R16Q-SLA | B80: 16Q SLA fúvóka Rain Bird | C80: 600 | D80: =IF(#REF!=A80, "Egyezik", "Nem egyezik") -> 
A81: H 17A | B81: 17'A áll. fúvóka Hunter, (R=5.2m; 0-360°) | C81: 530 | D81: =IF(#REF!=A81, "Egyezik", "Nem egyezik") -> 
A82: H 17H | B82: 17'H fúvóka Hunter, (R=5.2m; 180°) | C82: 530 | D82: =IF(#REF!=A82, "Egyezik", "Nem egyezik") -> 
A83: H 17Q | B83: 17'Q fúvóka Hunter, (R=5.2m; 90°) | C83: 530 | D83: =IF(#REF!=A83, "Egyezik", "Nem egyezik") -> 
A84: 17-TVAN | B84: 17-TVAN, KVAN áll. fúvóka Toro | C84: 670 | D84: =IF(#REF!=A84, "Egyezik", "Nem egyezik") -> 
A85: 18-VAN | B85: 18 VAN áll. fúvóka Rain Bird, (R=5.5m; 0-360°) | C85: 570 | D85: =IF(#REF!=A85, "Egyezik", "Nem egyezik") -> 
A86: RPA8S | B86: 1800-S, nem kiemelkedő (shrub) adapter, BM 1/2" | C86: 376 | D86: =IF(#REF!=A86, "Egyezik", "Nem egyezik") -> 
A87: 1803 | B87: 1803 szórófej HÁZ, 7,5cm | C87: 1073 | D87: =IF(#REF!=A87, "Egyezik", "Nem egyezik") -> 
A88: 1803+15VAN | B88: 1803 szórófej HÁZ, 7,5cm + 15VAN Fúvóka | C88: 1428 | D88: =IF(#REF!=A88, "Egyezik", "Nem egyezik") -> 
A89: 1804-SAM | B89: 1804 SAM szórófej HÁZ, 10 cm, VFG | C89: 1836 | D89: =IF(#REF!=A89, "Egyezik", "Nem egyezik") -> 
A90: 1804 | B90: 1804 szórófej HÁZ, 10 cm | C90: 753 | D90: =IF(#REF!=A90, "Egyezik", "Nem egyezik") -> 
A91: RD06 | B91: 1806 RD06 szórófej HÁZ, 15 cm | C91: 2605 | D91: =IF(#REF!=A91, "Egyezik", "Nem egyezik") -> 
A92: 1806 | B92: 1806 szórófej HÁZ, 15 cm | C92: 2026 | D92: =IF(#REF!=A92, "Egyezik", "Nem egyezik") -> 
A93: 1812-SAM | B93: 1812 SAM szórófej HÁZ, 30 cm, VFG | C93: 3134 | D93: =IF(#REF!=A93, "Egyezik", "Nem egyezik") -> 
A94: 1812 | B94: 1812 szórófej HÁZ, 30 cm | C94: 4589 | D94: =IF(#REF!=A94, "Egyezik", "Nem egyezik") -> 
A95: R22-F-SS | B95: 22'F SS fúvóka Rain Bird | C95: 600 | D95: =IF(#REF!=A95, "Egyezik", "Nem egyezik") -> 
A96: R22-H-SS | B96: 22'H SS fúvóka Rain Bird | C96: 600 | D96: =IF(#REF!=A96, "Egyezik", "Nem egyezik") -> 
A97: R22-Q-SS | B97: 22'Q SS fúvóka Rain Bird | C97: 600 | D97: =IF(#REF!=A97, "Egyezik", "Nem egyezik") -> 
A98: 264-06-03 | B98: 264-es mágnesszelep, 3/4" KK, 24VAC | C98: 10407 | D98: =IF(#REF!=A98, "Egyezik", "Nem egyezik") -> 
A99: H 2H | B99: 2'H fúvóka Hunter | C99: 530 | D99: =IF(#REF!=A99, "Egyezik", "Nem egyezik") -> 
A100: H 2Q | B100: 2'Q fúvóka Hunter | C100: 530 | D100: =IF(#REF!=A100, "Egyezik", "Nem egyezik") -> 
A101: 89-1512 | B101: 2-SST-PC fúvóka Toro | C101: 598 | D101: =IF(#REF!=A101, "Egyezik", "Nem egyezik") -> 
A102: 3504-PC | B102: 3504 PC szórófej, 10cm kiemelkedés, állítható 30-360° | C102: 3736 | D102: =IF(#REF!=A102, "Egyezik", "Nem egyezik") -> 
A103: 3504-PC-SAM | B103: 3504 PC-SAM szórófej, 10cm kiemelkedés, állítható 30-360° | C103: 4848 | D103: =IF(#REF!=A103, "Egyezik", "Nem egyezik") -> 
A104: 89-1491 | B104: 35-SSF-PC fúvóka Toro | C104: 598 | D104: =IF(#REF!=A104, "Egyezik", "Nem egyezik") -> 
A105: 89-1493 | B105: 35-SSH-PC fúvóka Toro | C105: 598 | D105: =IF(#REF!=A105, "Egyezik", "Nem egyezik") -> 
A106: 89-1495 | B106: 35-SSQ-PC fúvóka Toro | C106: 598 | D106: =IF(#REF!=A106, "Egyezik", "Nem egyezik") -> 
A107: 4-VAN | B107: 4 VAN áll. fúvóka RainBird, (R=1.2m; 0-360°) | C107: 570 | D107: =IF(#REF!=A107, "Egyezik", "Nem egyezik") -> 
A108: H 4A | B108: 4'A áll. fúvóka Hunter, (R=1.2m; 0-360°) | C108: 530 | D108: =IF(#REF!=A108, "Egyezik", "Nem egyezik") -> 
A109: 89-1497 | B109: 4-CST-PC fúvóka Toro | C109: 598 | D109: =IF(#REF!=A109, "Egyezik", "Nem egyezik") -> 
A110: 89-1500 | B110: 4-EST-PC fúvóka Toro | C110: 598 | D110: =IF(#REF!=A110, "Egyezik", "Nem egyezik") -> 
A111: H 4H | B111: 4'H fúvóka Hunter | C111: 530 | D111: =IF(#REF!=A111, "Egyezik", "Nem egyezik") -> 
A112: H 4Q | B112: 4'Q fúvóka Hunter | C112: 530 | D112: =IF(#REF!=A112, "Egyezik", "Nem egyezik") -> 
A113: 89-1509 | B113: 4S-SST-PC fúvóka Toro | C113: 598 | D113: =IF(#REF!=A113, "Egyezik", "Nem egyezik") -> 
A114: 89-1503 | B114: 4-SST-PC fúvóka Toro | C114: 598 | D114: =IF(#REF!=A114, "Egyezik", "Nem egyezik") -> 
A115: 5004Shrub | B115: 5000 PLUS szórófej, SHRUB nem kiemelkedő | C115: 5292 | D115: =IF(#REF!=A115, "Egyezik", "Nem egyezik") -> 
A116: 5000E | B116: 5004 FEKETE szórófej, 10cm kiemelkedés | C116: 3957 | D116: =IF(#REF!=A116, "Egyezik", "Nem egyezik") -> 
A117: 5004-F | B117: 5004 PLUS FC 360° szórófej, 10cm kiemelkedés | C117: 4390 | D117: =IF(#REF!=A117, "Egyezik", "Nem egyezik") -> 
A118: 5004PC-SS-SAM PRS | B118: 5004 PLUS SS-PC SAM - PRS - szórófej, 10cm, fém nyak | C118: 8049 | D118: =IF(#REF!=A118, "Egyezik", "Nem egyezik") -> 
A119: 5004PC-SS-SAM | B119: 5004 PLUS SS-PC SAM szórófej, 10cm, fém nyak | C119: 6562 | D119: =IF(#REF!=A119, "Egyezik", "Nem egyezik") -> 
A120: 5004-PC | B120: 5004 PLUS szórófej, 10cm kiemelkedés, állítható 40-360 | C120: 5520 | D120: =IF(#REF!=A120, "Egyezik", "Nem egyezik") -> 
A121: 5012-PC | B121: 5012 PLUS szórófej, 30cm kiemelkedés, állítható 40-360 | C121: 11325 | D121: =IF(#REF!=A121, "Egyezik", "Nem egyezik") -> 
A122: 9-6807 | B122: 570S, nem kiemelkedő (shrub) adapter, BM 1/2" | C122: 272 | D122: =IF(#REF!=A122, "Egyezik", "Nem egyezik") -> 
A123: 89-3982 | B123: 570Z 12P szórófej, 30cm | C123: 5632 | D123: =IF(#REF!=A123, "Egyezik", "Nem egyezik") -> 
A124: 89-5807 | B124: 570Z 2P szórófej, 5cm | C124: 1074 | D124: =IF(#REF!=A124, "Egyezik", "Nem egyezik") -> 
A125: 89-4722 | B125: 570Z 3P COM szórófej, 7.5cm, VFG | C125: 1810 | D125: =IF(#REF!=A125, "Egyezik", "Nem egyezik") -> 
A126: 89-3977 | B126: 570Z 3P szórófej, 7.5cm | C126: 1225 | D126: =IF(#REF!=A126, "Egyezik", "Nem egyezik") -> 
A127: 89-4723 | B127: 570Z 4P COM szórófej, 10cm, VFG | C127: 2414 | D127: =IF(#REF!=A127, "Egyezik", "Nem egyezik") -> 
A128: 89-3978 | B128: 570Z 4P szórófej, 10cm | C128: 1006 | D128: =IF(#REF!=A128, "Egyezik", "Nem egyezik") -> 
A129: 570zNYKT | B129: 570Z nyaktömítés | C129: 370 | D129: =IF(#REF!=A129, "Egyezik", "Nem egyezik") -> 
A130: 5-CST-B | B130: 5-CST-B sugaras tőöntöző fúvóka Hunter | C130: 530 | D130: =IF(#REF!=A130, "Egyezik", "Nem egyezik") -> 
A131: R5-F-B | B131: 5'F B fúvóka Rain Bird | C131: 600 | D131: =IF(#REF!=A131, "Egyezik", "Nem egyezik") -> 
A132: H 5F | B132: 5'F fúvóka Hunter, (R=1.2m; 360°) | C132: 530 | D132: =IF(#REF!=A132, "Egyezik", "Nem egyezik") -> 
A133: R5-F | B133: 5'F fúvóka Rain Bird | C133: 600 | D133: =IF(#REF!=A133, "Egyezik", "Nem egyezik") -> 
A134: 89-1473 | B134: 5-F-PC fúvóka Toro | C134: 598 | D134: =IF(#REF!=A134, "Egyezik", "Nem egyezik") -> 
A135: R5-H-B | B135: 5'H B fúvóka Rain Bird | C135: 600 | D135: =IF(#REF!=A135, "Egyezik", "Nem egyezik") -> 
A136: H 5H | B136: 5'H fúvóka Hunter, (R=1.2m; 180°) | C136: 530 | D136: =IF(#REF!=A136, "Egyezik", "Nem egyezik") -> 
A137: R5-H | B137: 5'H fúvóka Rain Bird | C137: 600 | D137: =IF(#REF!=A137, "Egyezik", "Nem egyezik") -> 
A138: 89-1482 | B138: 5-H-PC fúvóka Toro | C138: 598 | D138: =IF(#REF!=A138, "Egyezik", "Nem egyezik") -> 
A139: R5-Q-B | B139: 5'Q B fúvóka Rain Bird | C139: 600 | D139: =IF(#REF!=A139, "Egyezik", "Nem egyezik") -> 
A140: H 5Q | B140: 5'Q fúvóka Hunter, (R=1.5m; 90°) | C140: 530 | D140: =IF(#REF!=A140, "Egyezik", "Nem egyezik") -> 
A141: R5-Q | B141: 5'Q fúvóka Rain Bird | C141: 600 | D141: =IF(#REF!=A141, "Egyezik", "Nem egyezik") -> 
A142: 89-1488 | B142: 5-Q-PC fúvóka Toro | C142: 598 | D142: =IF(#REF!=A142, "Egyezik", "Nem egyezik") -> 
A143: 89-1485 | B143: 5-T-PC fúvóka Toro | C143: 598 | D143: =IF(#REF!=A143, "Egyezik", "Nem egyezik") -> 
A144: 89-1476 | B144: 5-TQ-PC fúvóka Toro | C144: 598 | D144: =IF(#REF!=A144, "Egyezik", "Nem egyezik") -> 
A145: 89-1479 | B145: 5-TT-PC fúvóka Toro | C145: 598 | D145: =IF(#REF!=A145, "Egyezik", "Nem egyezik") -> 
A146: 6-VAN | B146: 6 VAN áll. fúvóka RainBird, (R=1.8m; 0-360°) | C146: 570 | D146: =IF(#REF!=A146, "Egyezik", "Nem egyezik") -> 
A147: H 6A | B147: 6'A áll. fúvóka Hunter, (R=1.8m; 0-360°) | C147: 530 | D147: =IF(#REF!=A147, "Egyezik", "Nem egyezik") -> 
A148: H 6H | B148: 6'H fúvóka Hunter | C148: 530 | D148: =IF(#REF!=A148, "Egyezik", "Nem egyezik") -> 
A149: H 6Q | B149: 6'Q fúvóka Hunter | C149: 530 | D149: =IF(#REF!=A149, "Egyezik", "Nem egyezik") -> 
A150: 8-HE VAN | B150: 8 HE VAN áll. fúvóka Rain Bird, (R=2.4m; 0-360°) | C150: 625 | D150: =IF(#REF!=A150, "Egyezik", "Nem egyezik") -> 
A151: 8-VAN | B151: 8 VAN áll. fúvóka RainBird, (R=2.4m; 0-360°) | C151: 570 | D151: =IF(#REF!=A151, "Egyezik", "Nem egyezik") -> 
A152: B80000 | B152: 8005 Gyepültető kosár | C152: 16274 | D152: =IF(#REF!=A152, "Egyezik", "Nem egyezik") -> 
A153: 8005 | B153: 8005 PC Rotoros szórófej | C153: 23998 | D153: =IF(#REF!=A153, "Egyezik", "Nem egyezik") -> 
A154: 8005 SS | B154: 8005 SS-PC-SAM Rotoros szórófej, fém nyak | C154: 28609 | D154: =IF(#REF!=A154, "Egyezik", "Nem egyezik") -> 
A155: H 8A | B155: 8'A áll. fúvóka Hunter, (R=2.4m; 0-360°) | C155: 530 | D155: =IF(#REF!=A155, "Egyezik", "Nem egyezik") -> 
A156: H 8F | B156: 8'F fúvóka Hunter, (R=2.4m; 360°) | C156: 530 | D156: =IF(#REF!=A156, "Egyezik", "Nem egyezik") -> 
A157: R8-F | B157: 8'F fúvóka Rain Bird | C157: 600 | D157: =IF(#REF!=A157, "Egyezik", "Nem egyezik") -> 
A158: 89-1455 | B158: 8-F-PC fúvóka Toro | C158: 598 | D158: =IF(#REF!=A158, "Egyezik", "Nem egyezik") -> 
A159: H 8H | B159: 8'H fúvóka Hunter, (R=2.4m; 180°) | C159: 530 | D159: =IF(#REF!=A159, "Egyezik", "Nem egyezik") -> 
A160: R8-H | B160: 8'H fúvóka Rain Bird | C160: 600 | D160: =IF(#REF!=A160, "Egyezik", "Nem egyezik") -> 
A161: O-T-8-HP | B161: 8-H Pecision fúvóka Toro | C161: 1624 | D161: =IF(#REF!=A161, "Egyezik", "Nem egyezik") -> 
A162: 89-1464 | B162: 8-H-PC fúvóka Toro | C162: 598 | D162: =IF(#REF!=A162, "Egyezik", "Nem egyezik") -> 
A163: H 8Q | B163: 8'Q fúvóka Hunter, (R=2.4m; 90°) | C163: 530 | D163: =IF(#REF!=A163, "Egyezik", "Nem egyezik") -> 
A164: R8-Q | B164: 8'Q fúvóka Rain Bird | C164: 600 | D164: =IF(#REF!=A164, "Egyezik", "Nem egyezik") -> 
A165: O-T-8-QP | B165: 8-Q Pecision fúvóka Toro | C165: 1624 | D165: =IF(#REF!=A165, "Egyezik", "Nem egyezik") -> 
A166: 89-1470 | B166: 8-Q-PC fúvóka Toro | C166: 598 | D166: =IF(#REF!=A166, "Egyezik", "Nem egyezik") -> 
A167: 89-1467 | B167: 8-T-PC fúvóka Toro | C167: 598 | D167: =IF(#REF!=A167, "Egyezik", "Nem egyezik") -> 
A168: 89-1458 | B168: 8-TQ-PC fúvóka Toro | C168: 598 | D168: =IF(#REF!=A168, "Egyezik", "Nem egyezik") -> 
A169: 89-1461 | B169: 8-TT-PC fúvóka Toro | C169: 598 | D169: =IF(#REF!=A169, "Egyezik", "Nem egyezik") -> 
A170: 8-TVAN | B170: 8-TVAN, KVAN áll. fúvóka Toro | C170: 670 | D170: =IF(#REF!=A170, "Egyezik", "Nem egyezik") -> 
A171: A47047 | B171: 9'SST fúvóka Rain Bird | C171: 600 | D171: =IF(#REF!=A171, "Egyezik", "Nem egyezik") -> 
A172: 89-1506 | B172: 9-SST-PC fúvóka Toro | C172: 598 | D172: =IF(#REF!=A172, "Egyezik", "Nem egyezik") -> 
A173: ACC99D | B173: ACC-99D, 99 zónáig, FÉMHÁZAS | C173: 490938 | D173: =IF(#REF!=A173, "Egyezik", "Nem egyezik") -> 
A174: H ACCU-SET | B174: ACCU-SET nyomásszabályozó (PGV, ICV) | C174: 11174 | D174: =IF(#REF!=A174, "Egyezik", "Nem egyezik") -> 
A175: H ACCU-SET | B175: ACCU-SYNC ADJ nyomásszabályozó (PGV,ICV) | C175: 11735 | D175: =IF(#REF!=A175, "Egyezik", "Nem egyezik") -> 
A176: H AFB | B176: AFB állítható tőöntöző spraytest fúvóka | C176: 1250 | D176: =IF(#REF!=A176, "Egyezik", "Nem egyezik") -> 
A177: AGROSZ1.05x100 | B177: Agroszövet 1.05 m x 100 m, (tekercsben) | C177: 17913 | D177: =IF(#REF!=A177, "Egyezik", "Nem egyezik") -> 
A178: 200.4064562 | B178: AMICO PRO, 1 körös elemes vezérlő + RN150 1" KH | C178: 24829 | D178: =IF(#REF!=A178, "Egyezik", "Nem egyezik") -> 
A179: 200.4064200 | B179: AMICO PRO, 2 körös elemes vezérlő | C179: 26829 | D179: =IF(#REF!=A179, "Egyezik", "Nem egyezik") -> 
A180: 46050 | B180: AP adagoló, POOL BALLZ | C180: 11182 | D180: =IF(#REF!=A180, "Egyezik", "Nem egyezik") -> 
A181: T53 | B181: AP adagoló, úszó | C181: 903 | D181: =IF(#REF!=A181, "Egyezik", "Nem egyezik") -> 
A182: 36620 | B182: AP adagoló, úszó, SHARK | C182: 1612 | D182: =IF(#REF!=A182, "Egyezik", "Nem egyezik") -> 
A183: 11416 | B183: AP algaölő szer, habzó, ALGAECIDE, 1l | C183: 913 | D183: =IF(#REF!=A183, "Egyezik", "Nem egyezik") -> 
A184: 11417 | B184: AP algaölő szer, habzó, ALGAECIDE, 5l | C184: 3712 | D184: =IF(#REF!=A184, "Egyezik", "Nem egyezik") -> 
A185: 16550 | B185: AP bróm tabletta, 20g-os, BROMO, 5kg | C185: 21560 | D185: =IF(#REF!=A185, "Egyezik", "Nem egyezik") -> 
A186: T64A | B186: AP háló komplett, alumínium nyéllel 150 cm (feszes) | C186: 2187 | D186: =IF(#REF!=A186, "Egyezik", "Nem egyezik") -> 
A187: T302C | B187: AP háló komplett, alumínium nyéllel 2*30" (feszes) | C187: 3060 | D187: =IF(#REF!=A187, "Egyezik", "Nem egyezik") -> 
A188: T109B | B188: AP háló, alumínium erősítéssel, nagy teherbírású, mély | C188: 2496 | D188: =IF(#REF!=A188, "Egyezik", "Nem egyezik") -> 
A189: TN62N | B189: AP háló, Economy | C189: 1810 | D189: =IF(#REF!=A189, "Egyezik", "Nem egyezik") -> 
A190: T55 | B190: AP háló, erősített műanyag kerettel, mély hálóval | C190: 2414 | D190: =IF(#REF!=A190, "Egyezik", "Nem egyezik") -> 
A191: T87 | B191: AP háló, feszes (mágneses) | C191: 863 | D191: =IF(#REF!=A191, "Egyezik", "Nem egyezik") -> 
A192: 46048/1 | B192: AP klór golyó, kombinált, POOL BALLZ | C192: 337 | D192: =IF(#REF!=A192, "Egyezik", "Nem egyezik") -> 
A193: 46048 | B193: AP klór golyók, kombinált, POOL BALLZ, 16db | C193: 5744 | D193: =IF(#REF!=A193, "Egyezik", "Nem egyezik") -> 
A194: 11393 | B194: AP klór granulátum, stabilizált 55%, 1kg | C194: 1569 | D194: =IF(#REF!=A194, "Egyezik", "Nem egyezik") -> 
A195: 29336980 | B195: AP klór tabletta, lassan oldódó, ACTION 10, 1kg | C195: 2440 | D195: =IF(#REF!=A195, "Egyezik", "Nem egyezik") -> 
A196: 25320 | B196: AP klór tabletta, lassan oldódó, ACTION 10, 5kg | C196: 8907 | D196: =IF(#REF!=A196, "Egyezik", "Nem egyezik") -> 
A197: T85/SGL/S | B197: AP nyél, alumínium, 20x0.8x1800 | C197: 5240 | D197: =IF(#REF!=A197, "Egyezik", "Nem egyezik") -> 
A198: T84/DGL6S | B198: AP nyél, alumínium, 20x0.8x2400 | C198: 7008 | D198: =IF(#REF!=A198, "Egyezik", "Nem egyezik") -> 
A199: 11388 | B199: AP pelyhesítő folyadék, LIQUID CLARIFIER, 5l | C199: 2655 | D199: =IF(#REF!=A199, "Egyezik", "Nem egyezik") -> 
A200: 11384 | B200: AP pH csökkentő granulátum, pH MINUSZ, 1.5kg | C200: 1420 | D200: =IF(#REF!=A200, "Egyezik", "Nem egyezik") -> 
... 1745 more rows
